Cogmind - Beta 16 @@@ ROGUE MODE // 2025.12.23 @ 13:12:10 Player: Desaphets Result: Destroyed by D-53 Grenadier with Mini Grenade Launcher Performance ------------- Evolutions (0) 0 Regions Visited (4) 800 Robots Destroyed (38) 190 Value Destroyed (619) 619 Prototype IDs (1) 20 Alien Tech Used (0) 0 Bonus (225) 225 TOTAL SCORE: 1854 Bonus ------- Follower Combat Kills 46 Aligned with FarCom 300 Friendly Fire -121 Cogmind --------- Core Integrity 0/250 Matter 176/300 Energy 84/250 System Corruption 0% Temperature Cool (30) Movement Core (3500) Ox69 Location -9/Mines Parts ------- > --- POWER (1) -------- Ion Engine > --- PROPULSION (2) --- (None) > --- UTILITY (2) ------ Humpback > --- WEAPON (2) ------- Beam Cannon Assault Rifle > --- INVENTORY (35) --- Light Fission Core Aluminum Leg Aluminum Leg Potential Leg Potential Leg Flying Fortress v7 Humpback Medium Battery (150) Medium Matter Pod (100) Structural Scanner Sensor Array Signal Interpreter Improved Terrain Scanner Targeting Computer EM Shotgun Assault Rifle Assault Rifle AWS/Autocannon Peak State ------------ > --- POWER ------------ Light Nuclear Core > --- PROPULSION ------- Potential Leg Potential Leg > --- UTILITY ---------- Humpback > --- WEAPON ----------- Light Cannon Rocket Launcher > --- INVENTORY -------- Ion Engine Light Fission Core Aluminum Leg Aluminum Leg Armored Wheel Armored Wheel Flying Fortress v7 Humpback Medium Battery Medium Matter Pod Structural Scanner Sensor Array Signal Interpreter Improved Terrain Scanner Targeting Computer EM Shotgun Beam Cannon Assault Rifle Assault Rifle Assault Rifle AWS/Autocannon [Rating: 37] Favorites ----------- Power Light Nuclear Core Engine Ion Engine Power Core Light Nuclear Core Propulsion Armored Wheel Treads Light Treads Leg Aluminum Leg Wheel Armored Wheel Utility Large Storage Unit Device Structural Scanner Storage Large Storage Unit Weapon Light Cannon Energy Gun EM Pulse Gun Energy Cannon Beam Cannon Ballistic Gun Assault Rifle Ballistic Cannon Light Cannon Launcher Rocket Launcher Special Weapon Mining Laser Build | -11 -10 -10 -10 -9 ------- Run | Yrd Mat Min Exi Min Slots Evolved . | . . . . . Power . | . . . . . Propulsion . | . . . . . Utility . | . . . . . Weapon . | . . . . . Parts Attached 28 | 9 10 4 3 2 Power 3 | 1 1 1 . . Engine 2 | 1 1 . . . Core 1 | . . 1 . . Reactor . | . . . . . Propulsion 8 | 3 3 . 2 . Treads 1 | 1 . . . . Leg 5 | 2 1 . 2 . Wheel 2 | . 2 . . . Hover . | . . . . . Flight . | . . . . . Utility 6 | 2 2 1 1 . Device 3 | 1 1 1 . . Storage 3 | 1 1 . 1 . Processor . | . . . . . Hackware . | . . . . . Protection . | . . . . . Artifact . | . . . . . Weapon 11 | 3 4 2 . 2 Energy Gun 2 | 2 . . . . Energy Cannon 2 | . 1 . . 1 Ballistic Gun 4 | 1 2 . . 1 Ballistic Cannon 1 | . 1 . . . Launcher 1 | . . 1 . . Special Weapon 1 | . . 1 . . Impact Weapon . | . . . . . Slashing Weapon . | . . . . . Piercing Weapon . | . . . . . Special Melee Weapon . | . . . . . Unidentified Prototypes 1 | . . . 1 . Parts Lost 8 | . 2 1 . 5 Power 1 | . . . . 1 Propulsion 2 | . . . . 2 Utility 1 | . . 1 . . Weapon 4 | . 2 . . 2 Highest Loss Streak 5 | . 1 1 . 5 To Critical Strikes . | . . . . . Average Backups 15 | 5 12 14 17 21 Power 1 | 1 1 1 1 2 Propulsion 3 | 3 4 2 3 5 Utility 6 | . 4 6 7 8 Weapon 4 | . 2 5 5 6 Tool/Special . | . . . . . Unused Backups 17 | . 3 1 . 13 Power 1 | . . . . 1 Propulsion 6 | . 3 . . 3 Utility 7 | . . 1 . 6 Weapon 3 | . . . . 3 Tool/Special . | . . . . . Average Slot Usage (%) 91 | . 92 99 90 84 Engine 4 | . 11 4 . . Core 8 | . . 9 14 13 Leg 9 | . 25 . . . Wheel 18 | . 1 28 27 27 Device 8 | . 14 13 5 . Storage 14 | . 14 14 14 14 Energy Gun 1 | . 3 . . . Energy Cannon 4 | . 8 10 . . Ballistic Gun 3 | . 9 . . . Ballistic Cannon 10 | . 3 12 14 13 Launcher 7 | . . 3 14 13 Peak Build Rating 37 | 9 10 15 37 22 Average Rating 14 | 4 7 12 18 21 On Entrance 11 | . 9 10 15 22 Avg Prop Armor Cover (%) . | . . . . . Naked Turns . | . . . . . Heaviest Build 212 | 14 32 33 212 212 Greatest Support 60 | 20 24 24 60 24 Greatest Overweight (x) 16 | 1 10 1 8 16 Average Overweight (x) 3 | . . 1 4 8 Largest Inventory Capacity 35 | 8 15 15 35 35 Average Capacity 22 | 7 14 15 27 35 Most Carried 27 | 8 15 15 27 27 Average Carried 17 | 5 12 14 20 26 Final Capacity 35 | 8 15 15 35 35 Final Carried 27 | 5 15 14 27 24 Class Distribution -------------------- 60% | Mutant 39% | Hauler-Mutant Dominant Class ---------------- Mutant | -10/Materials Mutant | -10/Mines Hauler-Mutant | -10/Exiles Hauler-Mutant | -9/Mines Resources | -11 -10 -10 -10 -9 ----------- Run | Yrd Mat Min Exi Min Matter Collected 869 | 290 233 243 20 83 Remotely . | . . . . . Salvage Created 989 | 96 595 223 . 75 Parts 65 | 5 35 12 . 13 Haulers Intercepted . | . . . . . Recyclers Shooed 2 | . 2 . . . Parts Field Recycled . | . . . . . Retrieved Matter . | . . . . . Parts Self-Destructed . | . . . . . Prevented . | . . . . . Parts Restored . | . . . . . Kills | -11 -10 -10 -10 -9 ------- Run | Yrd Mat Min Exi Min Combat Hostiles Destroyed 26 | . 14 2 . 10 Guns 3 | . 3 . . . Cannons 15 | . 9 2 . 4 AOE 8 | . 2 . . 6 Classes Destroyed 7 | 2 3 2 . . Worker 1 | . . 1 . . Builder 1 | . . 1 . . Tunneler 3 | 1 . 2 . . Recycler 4 | 1 2 1 . . Watcher 2 | . 2 . . . Swarmer 16 | . 6 . . 10 Grunt 10 | . 8 2 . . Thug 1 | . . . . 1 Best Kill Streak 6 | 2 3 4 . 6 Combat Bots Only 6 | . 3 2 . 6 Max Kills in Single Turn 3 | 1 2 1 . 3 Gunslinging . | . . . . . Exploded 2 | . 2 . . 2 Melee . | . . . . . Uniques/NPCs Destroyed . | . . . . . Combat | -11 -10 -10 -10 -9 -------- Run | Yrd Mat Min Exi Min Hostile Shots Fired 139 | . 87 18 . 34 Missed 31 | . 24 3 . 4 Hits 108 | . 63 15 . 30 Projectile 108 | . 63 15 . 30 AOE 10 | . . . . 10 Critical Strikes 1 | . 1 . . . Damage Taken 1494 | . 655 208 . 631 Core 280 | . 132 13 . 135 Absorbed by Shields . | . . . . . Regen/Repaired (Parts) 104 | . 104 . . . Core Remaining (%) 100 | 100 . . . . Volleys Fired 92 | 7 48 23 . 14 Largest 2 | 1 2 2 . 2 Hottest 100 | 40 90 100 . 80 Shots Fired 160 | 7 91 38 . 24 Gun 58 | 7 49 . . 2 Cannon 85 | . 42 29 . 14 Launcher 12 | . . 4 . 8 Special 5 | . . 5 . . Kinetic 72 | . 43 15 . 14 Thermal 50 | . 29 19 . 2 Explosive 12 | . . 4 . 8 Electromagnetic 26 | 7 19 . . . Robot Hit Streak 9 | 3 9 5 . 6 Robot Miss Streak 4 | 1 4 3 . 3 Penetration Max . | . . . . . Secondary Targets 1 | . 1 . . . Max Gunslinging Chain 1 | . 1 . . . Shots Hit Robots 69 | 3 44 16 . 6 Core Hits 45 | 2 22 9 . 12 Critical Kills 1 | . 1 . . . Critical Parts Destroyed . | . . . . . Critical Strikes 3 | . 2 . . 1 Destroy 1 | . 1 . . . Blast 1 | . . . . 1 Corrupt 1 | . 1 . . . Melee Attacks . | . . . . . Impact . | . . . . . Slashing . | . . . . . Piercing . | . . . . . Sneak Attacks . | . . . . . Combat Hostiles . | . . . . . Follow-up Attacks . | . . . . . Damage Inflicted 1718 | 71 799 320 . 528 Guns 363 | 71 282 . . 10 Cannons 751 | . 383 285 . 83 Explosions 600 | . 130 35 . 435 Melee . | . . . . . Ramming 4 | . 4 . . . Kinetic 424 | . 183 148 . 93 Thermal 594 | . 457 137 . . Explosive 470 | . . 35 . 435 Electromagnetic 226 | 71 155 . . . Impact . | . . . . . Slashing . | . . . . . Piercing . | . . . . . Highest Corruption . | . . . . . Average Corruption . | . . . . . Corruption Purged . | . . . . . Corruption Blocked . | . . . . . Overload Shots . | . . . . . Overflow Damage 31 | . 14 . . 17 Projectiles 13 | . 13 . . . Explosions 18 | . 1 . . 17 Melee . | . . . . . Knockbacks 4 | . 1 3 . . Impact . | . . . . . Kinetic 3 | . 1 2 . . Secondary 1 | . . 1 . . Self-Inflicted Damage 126 | . 55 . . 71 Shots 3 | . 1 . . 2 Rammed . | . . . . . Targets Rammed 2 | . 2 . . . Kicked 2 | . 2 . . . Crushed . | . . . . . Highest Temperature 300 | . 300 277 . 36 Average Temperature 61 | . 55 85 . 14 Received Heat Transfer 297 | . 180 117 . . Siege Activations . | . . . . . Martial Activations . | . . . . . Shielding Activations . | . . . . . Robots Disrupted . | . . . . . Combat Hostiles . | . . . . . Robots Corrupted . | . . . . . Combat Hostiles . | . . . . . Parts Fried . | . . . . . Impact Corruptions . | . . . . . Robots Melted . | . . . . . Combat Hostiles . | . . . . . Parts Melted 4 | . 2 2 . . Heat Transferred 1149 | . 853 296 . . Parts Sabotaged . | . . . . . Parts Stolen . | . . . . . Parts Stripped . | . . . . . Power Chain Reactions 2 | . 2 . . . Alert | -11 -10 -10 -10 -9 ------- Run | Yrd Mat Min Exi Min Maximum Alert Level 1 | . . . . 1 Low Security (%) 95 | 100 100 100 . 82 Level 1 4 | . . . . 17 Level 2 . | . . . . . Level 3 . | . . . . . Level 4 . | . . . . . Level 5 . | . . . . . High Security . | . . . . . Max Security . | . . . . . Peak Influence 288 | 5 174 57 . 288 Initial 57 | . . 57 . . Average 40 | . 44 13 . 58 Influence Increases 911 | 10 469 85 . 347 Destroy 0b10 Robot/C 560 | . 280 40 . 240 Destroy 0b10 Robot/NC 55 | 10 20 25 . . Destroy Leader 94 | . 54 10 . 30 Allied During Kill 16 | . . . . 16 Successful Hack 14 | . 14 . . . Disable Machine 15 | . 15 . . . Destroy Structure 82 | . 11 10 . 61 Lose Combat Pursuer 75 | . 75 . . . Influence Decreases 706 | 10 321 233 . 142 Entered New Map 91 | . . 91 . . Time Decay 529 | 10 307 140 . 72 Lost Part 66 | . 14 2 . 50 Lost Ally 20 | . . . . 20 Squads Dispatched 2 | . 2 . . . Investigation 1 | . 1 . . . Extermination . | . . . . . Reinforcement 1 | . 1 . . . Assault . | . . . . . Garrison . | . . . . . Intercept . | . . . . . Searches Triggered . | . . . . . Construction Impeded . | . . . . . Haulers Reinforced . | . . . . . Active Scanning Responses . | . . . . . Cargo Convoy Interrupts . | . . . . . Stealth | -11 -10 -10 -10 -9 --------- Run | Yrd Mat Min Exi Min Distress Signals 2 | . 2 . . . Communications Jammed . | . . . . . Distress Signals . | . . . . . Times Spotted 40 | . 26 2 . 12 Peak Tracking Total 4 | . 4 2 . 4 Tactical Retreats 4 | . 4 . . . Traps | -11 -10 -10 -10 -9 ------- Run | Yrd Mat Min Exi Min Traps Triggered 1 | . 1 . . . Indirectly . | . . . . . Trap Hack Attempts . | . . . . . Triggered . | . . . . . Disarmed . | . . . . . Reprogrammed . | . . . . . Reused . | . . . . . Traps Extracted . | . . . . . Installed . | . . . . . Triggered . | . . . . . Machines | -11 -10 -10 -10 -9 ---------- Run | Yrd Mat Min Exi Min Machines Disabled 1 | . 1 . . . Max in Single Turn 1 | . 1 . . . Machines Repaired . | . . . . . Machines Dismantled . | . . . . . Machines Sabotaged . | . . . . . Overloaded Fab Kills . | . . . . . Hacking | -11 -10 -10 -10 -9 --------- Run | Yrd Mat Min Exi Min Machines Accessed 4 | . 3 . 1 . Terminals 2 | . 2 . . . Fabricators . | . . . . . Repair Stations 1 | . 1 . . . Recycling Units . | . . . . . Scanalyzers . | . . . . . Garrison Access . | . . . . . Total Hacks 13 | . 11 . 2 . Successful 7 | . 5 . 2 . Failed 6 | . 6 . . . Catastrophic 1 | . 1 . . . Database Lockouts . | . . . . . Manual 6 | . 4 . 2 . Terminals 6 | . 6 . . . Fabricators . | . . . . . Repair Stations 5 | . 5 . . . Recycling Units . | . . . . . Scanalyzers . | . . . . . Garrison Access . | . . . . . Terminal Hacks 3 | . 1 . 2 . Record 2 | . . . 2 . Hauler Manifests 1 | . 1 . . . Fabricator Hacks . | . . . . . Repair Station Hacks 4 | . 4 . . . Scan Component 2 | . 2 . . . Repair 2 | . 2 . . . Recycling Unit Hacks . | . . . . . Scanalyzer . | . . . . . Garrison Access Hacks . | . . . . . Unauthorized Hacks . | . . . . . Terminals . | . . . . . Fabricators . | . . . . . Repair Stations . | . . . . . Recycling Units . | . . . . . Scanalyzers . | . . . . . Garrison Access . | . . . . . Data Cores Recovered . | . . . . . Used . | . . . . . Hacking Detections 2 | . 2 . . . Full Trace Events . | . . . . . Feedback Events . | . . . . . Feedback Blocked . | . . . . . Robot Schematics Acquired . | . . . . . Robots Built . | . . . . . Authchips . | . . . . . Time . | . . . . . Total Robot Build Rating . | . . . . . Part Schematics Acquired . | . . . . . Parts Built . | . . . . . Authchips . | . . . . . Time . | . . . . . Total Part Build Rating . | . . . . . Part Studies Acquired . | . . . . . Parts Repaired 2 | . 2 . . . Time 52 | . 52 . . . Parts Recycled . | . . . . . Recycled Matter . | . . . . . Retrieved Matter . | . . . . . Retrieved Components . | . . . . . Parts Scanalyzed . | . . . . . Part Schematics Acquired . | . . . . . Parts Damaged . | . . . . . Bothacking | -11 -10 -10 -10 -9 ------------ Run | Yrd Mat Min Exi Min Used RIF Installer . | . . . . . Robots Hacked . | . . . . . Non-combat . | . . . . . Combat . | . . . . . Robot Hacks Applied . | . . . . . Relay Couplers Released . | . . . . . Fabnet Peak Effective % . | . . . . . Robots Rewired . | . . . . . Allies Hacked . | . . . . . Hacks Repelled . | . . . . . Allies | -11 -10 -10 -10 -9 -------- Run | Yrd Mat Min Exi Min Total Allies 2 | . . . . 2 Largest Group 2 | . . . . 2 Highest-Rated Group 38 | . . . . 38 Highest-Rated Ally 31 | . . . . 31 Total Orders . | . . . . . Ally Attacks 11 | . . . . 11 Total Damage 62 | . . . . 62 Kills 2 | . . . . 2 Allies Corrupted . | . . . . . Allies Melted . | . . . . . Intel | -11 -10 -10 -10 -9 ------- Run | Yrd Mat Min Exi Min Active Infowar (turns) 2526 | 15 1448 467 596 . Terrain 1141 | 15 253 277 596 . Structural 1385 | . 1195 190 . . Robot Analysis Total . | . . . . . Derelict Logs Recovered 1 | . . . . 1 Drone Launches . | . . . . . Drone Recoveries . | . . . . . Exploration | -11 -10 -10 -10 -9 ------------- Run | Yrd Mat Min Exi Min Turns Passed 4386 | 111 1448 499 1638 690 Spaces Moved 2404 | 68 610 396 1038 292 Core 19 | 16 3 . . . Treads 2 | 2 . . . . Legs 594 | 50 534 . 10 . Wheels 1789 | . 73 396 1028 292 Hover . | . . . . . Flight . | . . . . . Fastest Speed 50 | 50 105 105 105 210 Average Speed 157 | 112 178 105 154 210 Slowest Speed 650 | 160 550 105 650 330 Overloaded Moves . | . . . . . Propulsion Burnouts . | . . . . . Robots Hopped . | . . . . . Potential Cave-ins . | . . . . . Cave-ins Triggered . | . . . . . Exploration Rate (%) 66 | 5 86 67 92 81 Regions Visited 4 Branch Regions 3 Pre-discovered Areas 2 | . . . 1 1 Known Exits Taken . | . . . . . Unknown Exits Taken 4 | 1 1 1 1 . Scrap Searched 3 | . . 2 . 1 Spaces Dug 66 | . . 42 . 24 Terrain Destroyed 135 | . 8 42 . 85 Melee . | . . . . . Projectile 5 | . . 5 . . AOE 130 | . 8 37 . 85 Terrain Rammed . | . . . . . Walls Destroyed . | . . . . . Machines Disabled . | . . . . . Actions | -11 -10 -10 -10 -9 --------- Run | Yrd Mat Min Exi Min Total 2826 | 94 881 431 1077 343 Wait 224 | . 182 . 8 34 Move 2400 | 67 609 395 1037 292 Hop . | . . . . . Pick Up 53 | 10 20 2 21 . Fast Attach 7 | 3 3 1 . . Attach 13 | 4 3 2 1 3 Detach 1 | . . . 1 . Swap 15 | 2 5 4 4 . Drop 19 | 1 9 4 5 . Fire 92 | 7 48 23 . 14 Melee . | . . . . . Ram . | . . . . . Kick 2 | . 2 . . . Crush . | . . . . . Escape Stasis . | . . . . . Rewire . | . . . . . Trap . | . . . . . Miscellaneous . | . . . . . Route ------- -11/Scrapyard -10/Materials (discovered 4 exits: [*Mat x3] / [*Min]) -10/Mines (discovered 3 exits: [*Mat x2] / *Exi) -10/Exiles -9/Mines (discovered 1 exit: [*Mat]) History --------- Turn | Location | Event 20 | -11/Scrapyard | Discovered new exit (range 16) 112 | -11/Scrapyard | Entered Materials 310 | -10/Materials | Build established: Mutant 317 | -10/Materials | Discovered new exit (range 16) 677 | -10/Materials | Discovered new exit (range 15) 936 | -10/Materials | Repaired Ion Engine 963 | -10/Materials | Repaired Aluminum Leg 1261 | -10/Materials | Discovered new exit (range 14) 1361 | -10/Materials | Core integrity fell below 50% 1525 | -10/Materials | Discovered new exit (range 16) 1560 | -10/Materials | Entered Mines 1635 | -10/Mines | Discovered new exit (range 7) 1648 | -10/Mines | Discovered new exit (range 11) 1925 | -10/Mines | Received a Rocket Launcher from a helpful Derelict 2052 | -10/Mines | Deemed a non-threat by the Exiles lab entrance 2052 | -10/Mines | Discovered new exit (range 5) 2059 | -10/Mines | Entered Exiles 2087 | -10/Exiles | Met 8R-AWN 2104 | -10/Exiles | Met EX-HEX 2147 | -10/Exiles | Met EX-DEC 2182 | -10/Exiles | Visited The Gauntlet 2336 | -10/Exiles | Learned location of Zion (-7) 2391 | -10/Exiles | Discovered new exit (range 14) 2525 | -10/Exiles | Met EX-BIN 2541 | -10/Exiles | Aligned with FarCom system 2542 | -10/Exiles | Given EX-Vault access code 2958 | -10/Exiles | Opened EX-Vault 2964 | -10/Exiles | Build established: Hauler-Mutant 2968 | -10/Exiles | Found Prototype Leg 2969 | -10/Exiles | Identified Potential Leg 2977 | -10/Exiles | Found Potential Leg 2996 | -10/Exiles | Found Prototype Ballistic Cannon 3004 | -10/Exiles | Found Prototype Flight Unit 3058 | -10/Exiles | Warned to stay clear of 0b10 Research branches 3697 | -10/Exiles | Stole three prototypes: Potential Leg, Flying Fortress v7, AWS/Autocannon 3697 | -10/Exiles | Entered Mines 3781 | -9/Mines | Discovered new exit (range 16) 3793 | -9/Mines | Learned location of Storage (-7) 4018 | -9/Mines | Assembled infested the area 4112 | -9/Mines | Learned Materials stockpile data 4380 | -9/Mines | Core integrity fell below 20% 4387 | -9/Mines | Destroyed by D-53 Grenadier with Mini Grenade Launcher Last Messages --------------- 1V-U8H(g) Carbon-fiber Leg blasted off. 1V-U8H(g) destroyed. Destroyed Lgt. Ion Engine. S-10 Pest destroyed. The unstable cave ceiling collapses. Acquired 3 matter. The unstable cave ceiling collapses. Acquired 4 matter. The unstable cave ceiling collapses. U-05 Engineer lays Concrete. U-05 Engineer builds a Wall. The unstable cave ceiling collapses. Rocket Launcher destroyed. Arm. Wheel destroyed. Lgt. Nuclear Core destroyed. Lgt. Cannon destroyed. The unstable cave ceiling collapses. Arm. Wheel destroyed. The unstable cave ceiling collapses. U-05 Engineer lays Concrete. Map ----- +----------------------------------------------------+ | | | | | | | | | | | | | | | ??????????????????????????????????????????? | | ??????????????????????????????????????????? | | ????????????????#####?????????????????????? | | ???????????????## ##########????????????? | | ??????????????## # #????????????? | | ????????????### # # #????????????? | | ???????????## ## # #????????????? | | ???????????# ###* [ #????????????? | | ???????????# *== = """ #????????????? | | ????######## ## """ #????????????? | | ????"" """ # # """ #????????????? | | ???""" """ ##### #????????????? | | ?# """ """ = #??##########????????????? | | ?# % ###??????????????????????? | | ?# [ ####???????????????????? | | ?#######T### # ##?????????????????# | | ???????##??# #??????????????????# | | ???????????# #??????????????????# | | ???????????# @ #??????????????????? | | ???????????## #??????????????????? | | ????????????## ######?????????????? | | ?????????????# d #?????????????? | | ?????????????## #### % ??????? | | ??????????????# #???###?##????????? | | ????????####### ## #????????????? | | ????????# # # #???????????? | | ????????# ######## ### = #???????????? | | ????????# #??????# u ## =% # #??????????? | | ????????# #??????# #???????????? | | ????????# #??????# # #% ???????????# | | ????????# #??????# ### % ???????????? | | ????????# #?????? # ???????????? | | ????????# #?????# ## ## ###??????????? | | ??????### #?????## ##### #??#????????????? | | ??????# #??????## #???? ???????????????? | | ??????# ###???????# #?????##??????????????? | | ??????# #?????????# #?????????????????????? | | ??????# #?????????# #?????????????????????? | | ??????# #?????????# #????#????????????????? | | ??????# #?????????? #### ###??????????????? | | ??????# #?????????? # # ##?????????????? | | ??????# #???####?## #??######?????? | | ??????# #??? ## #?## ##????? | +----------------------------------------------------+ Best States ------------- Heat Dissipation 25 Energy Generation 14 Energy Capacity 250 Matter Stores 300 Matter Capacity 300 Sight Range 16 Terrain Scan Range 16 Terrain Scan Density 10 Evasion (%) 55 Item Schematics ----------------- None Robot Schematics ------------------ None Fabricated ------------ Nothing Repaired ---------- Ion Engine | 25% | -10/Materials Aluminum Leg | 34% | -10/Materials Studied --------- None Alien Tech Used ----------------- None Achievements -------------- Ghost 'Em Shopping List Sixth Sense Tank Challenges ------------ None Game ------ Seed MatterAntigravRedistributor Manual? 0 Play Time 00:33:55 Cumulative 6.9 hours Start 2025.12.23 @ 12:39:04 End 2025.12.23 @ 13:12:10 Sessions 1 Manual Loads 0 Difficulty Rogue Special Mode None Game No. 14 Rogue 14 Adventurer 0 Explorer 0 Win Type - Total 0 Types 0/0/0/0/0/0/0/0/0/0 Lore% 6 Gallery% 11 Achievement% 12 Wizard Run 0 Options --------- Layout 0 ASCII 0 Keyboard 0 Movement Mouse Keybinds 0 Fullscreen 1 Font 18/SmallcapsGlow Map View 76x50 Zoom Use 82% Tactical HUD 0 Map Filters NONE Filters NONE Steam 0 RUN: cbe2f029-c9e7-44f8-86f7-bf6932e46bee